bitfinex-derivatives/quotes_ETHF0:USTF0_20250123
["timestamp","ask_amount","ask_price","bid_price","bid_amount"]
[1737615727180,3.08458717,3211.1,3210.5,0.4953]
[1737615727181,2.46138717,3211.1,3210.5,0.4953]
[1737615727383,0.62331,3210.5,3210.4,44.01247778]
[1737615727978,1.5357,3210.7,3210.4,44.01247778]
[1737615728177,0.5243,3210.7,3210.4,44.01247778]
[1737615728373,0.62324,3210.9,3210.7,0.62326]
[1737615728574,0.62323,3211.0,3210.8,1.11935]
[1737615728786,0.62323,3210.9,3210.8,0.4961]
[1737615730385,0.62322,3211.0,3210.8,0.4961]
[1737615730684,0.62321,3211.0,3210.8,1.11935]
[1737615730888,0.62323,3210.9,3210.8,0.4961]
[1737615732774,0.62322,3211.0,3210.8,0.4961]
[1737615733083,2.87243367,3211.1,3210.8,0.4961]
[1737615733275,0.62318,3211.2,3211.0,0.6232]
[1737615733582,0.62316,3211.3,3211.1,0.62318]
[1737615733775,0.62317,3211.2,3211.0,0.6232]
[1737615733981,0.62317,3211.2,3211.1,40.8]
[1737615734484,0.62316,3211.3,3211.1,41.42318]
[1737615735885,0.62317,3211.2,3211.1,41.42318]
[1737615736087,0.62317,3211.3,3211.1,41.42318]
[1737615736287,0.62317,3211.2,3211.1,40.8]
[1737615737582,0.4824,3211.2,3210.8,0.4961]
[1737615737788,0.4824,3211.2,3210.4,0.00467778]
[1737615737789,0.62331,3210.5,3210.4,0.00467778]
[1737615738293,0.62331,3210.5,3210.4,40.80467778]
[1737615739591,1.13901,3210.5,3210.4,40.80467778]
[1737615740188,4.34681,3210.5,3210.4,40.80467778]
[1737615740488,8.86323072,3210.5,3210.4,40.80467778]
[1737615741092,8.86323072,3210.5,3210.4,0.00467778]
[1737615742891,8.86322543,3210.5,3210.4,0.00467778]
[1737615744494,8.86322137,3210.5,3210.4,0.00467778]
[1737615745293,0.62342,3209.9,3209.8,40.8]
[1737615748196,0.62342,3210.0,3209.8,40.8]
[1737615748396,1.13202,3210.0,3209.8,40.8]
[1737615749100,0.62343,3209.9,3209.8,40.8]
[1737615749406,0.5086,3210.0,3209.8,40.8]
[1737615749703,0.62345,3209.9,3209.8,40.8]
[1737615754196,3.2078,3210.1,3209.8,40.8]
[1737615754393,0.00467041,3210.2,3209.8,46.46918717]
[1737615754699,3.2078,3210.6,3210.1,2.46138717]
[1737615754902,3.2078,3210.6,3210.5,0.62333]
[1737615755494,3.2078,3210.6,3210.5,41.42333]
[1737615759003,3.2078,3210.6,3210.5,40.8]
[1737615759203,3.83112,3210.6,3210.5,40.8]
[1737615760403,3.2078,3210.6,3209.8,3.2078]
[1737615760603,0.62345,3209.9,3209.8,3.2078]
[1737615760904,0.62345,3209.9,3209.8,44.0078]
[1737615763806,0.62345,3209.9,3209.8,40.8]
[1737615769104,1.14355,3209.9,3209.8,40.8]
[1737615770398,3.60493717,3209.9,3209.8,40.8]
[1737615770603,0.62351,3209.6,3208.7,3.6722]
[1737615770903,6.29269717,3209.6,3208.9,0.62364]
[1737615771099,6.70386525,3209.6,3209.5,40.80467041]
[1737615771305,6.75286295,3209.6,3209.5,40.80467041]
[1737615771507,15.81813618,3209.6,3209.5,4.1e-07]
[1737615771699,16.2292607,3209.6,3209.5,4.1e-07]
[1737615772097,13.76787353,3209.6,3209.5,4.1e-07]
[1737615772310,8.76787353,3209.6,3209.5,4.1e-07]
[1737615772803,14.01492757,3209.6,3209.5,4.1e-07]
[1737615773010,13.76786207,3209.6,3209.5,4.1e-07]
[1737615775006,0.62364,3208.9,3208.8,40.8]
[1737615775207,6.34181341,3208.9,3208.8,40.8]
[1737615775513,10.3107597,3208.9,3208.8,40.8]
[1737615776503,10.31073242,3208.9,3208.8,40.8]
[1737615782911,10.31073713,3208.9,3208.8,40.8]
[1737615784523,10.31073817,3208.9,3208.8,40.8]
[1737615786822,10.26177346,3208.9,3208.8,40.8]
[1737615787019,0.6237,3208.6,3208.5,0.00467041]
[1737615787217,3.08508717,3208.6,3208.5,0.00467041]
[1737615787428,7.05426749,3208.6,3208.5,0.00467041]
[1737615789819,3.08508717,3208.6,3208.5,0.00467041]
[1737615790018,0.6237,3208.6,3208.5,0.00467041]
[1737615792625,3.08508717,3208.6,3208.5,0.00467041]
[1737615796731,3.13407186,3208.6,3208.5,0.00467041]
[1737615798024,3.63627186,3208.6,3208.5,0.00467041]
[1737615798225,3.99766194,3208.6,3208.5,0.00467041]
[1737615798430,4.04664574,3208.6,3208.5,0.00467041]
[1737615799334,13.44513311,3208.6,3208.5,4.1e-07]
[1737615799534,13.94323311,3208.6,3208.5,4.1e-07]
[1737615801329,0.62389,3207.6,3207.5,0.4984]
[1737615805938,0.62391,3207.5,3207.4,40.8]
[1737615807629,4.70572806,3207.5,3207.4,40.8]
[1737615808038,5.16529171,3207.5,3207.4,40.8]
[1737615808338,5.16515995,3207.5,3207.4,40.8]
[1737615808543,0.62395,3207.3,3207.2,0.00467041]
[1737615808836,6.29313717,3207.3,3207.2,0.00467041]
[1737615809032,10.29638214,3207.3,3207.2,0.00467041]
[1737615809432,6.29313717,3207.3,3207.2,0.00467041]
[1737615809829,10.28079679,3207.3,3207.2,0.00467041]
[1737615810034,11.37416575,3207.3,3207.2,0.00467041]
[1737615810629,10.32976575,3207.3,3207.2,0.00467041]
[1737615810937,6.29313717,3207.3,3207.2,0.00467041]
[1737615811530,3.83175,3207.3,3207.2,0.00467041]
[1737615811936,3.83175,3207.3,3207.2,40.80467041]
[1737615812149,3.2078,3207.3,3207.2,40.80467041]
[1737615812342,3.2078,3207.3,3207.2,41.42862041]
[1737615812543,0.00467041,3207.6,3207.3,0.62392]
[1737615812838,0.00467041,3207.6,3207.4,0.5007]
[1737615813137,0.62854041,3207.6,3207.5,0.9737]
[1737615814039,0.62854041,3207.6,3207.5,0.5087]
[1737615815932,3.08992758,3207.6,3207.5,0.5087]
[1737615816340,0.62391,3207.4,3207.2,40.80467041]
[1737615816542,0.62391,3207.4,3207.3,0.5059]
[1737615818146,2.46605758,3207.6,3207.3,0.5059]
[1737615818749,0.62855041,3207.6,3207.3,1.12982]
[1737615819039,0.00467041,3207.6,3207.4,0.4987]
[1737615819239,0.62389,3207.5,3207.4,0.4987]
[1737615819839,2.46605758,3207.6,3207.3,0.5059]
[1737615820040,0.62391,3207.4,3207.3,0.5059]
[1737615822848,0.62393,3207.3,3207.2,40.80467041]
[1737615823646,0.62392,3207.4,3207.2,40.80467041]
[1737615824148,1.0064,3207.5,3207.2,40.80467041]
[1737615824149,0.62393,3207.3,3207.2,40.80467041]
[1737615824343,0.62392,3207.4,3207.2,40.80467041]
[1737615826651,3.08992758,3207.6,3207.2,40.80467041]
[1737615826847,2.46605758,3207.6,3207.4,0.62391]
[1737615827650,2.46605758,3207.6,3207.2,41.27017041]
[1737615827951,0.6239,3207.5,3207.3,0.62392]
[1737615828155,2.46605758,3207.6,3207.2,41.27017041]
[1737615828453,3.08993758,3207.6,3207.3,0.62392]
[1737615828657,3.50147386,3207.6,3207.3,0.62392]
[1737615828845,2.87759386,3207.6,3207.4,0.62389]
[1737615829048,3.08992758,3207.6,3207.4,0.62389]
[1737615829349,3.50166933,3207.6,3207.2,41.27017041]
[1737615829758,3.50166933,3207.6,3207.3,0.62393]
[1737615830053,0.6239,3207.5,3207.2,41.89411041]
[1737615830453,2.87779933,3207.6,3207.2,41.42861041]
[1737615830654,0.62389,3207.5,3207.2,41.91351041]
[1737615830957,0.62392,3207.4,3207.2,41.28957041]
[1737615831147,0.62392,3207.4,3207.2,41.91351041]
[1737615831543,0.62392,3207.4,3207.2,41.28957041]
[1737615831950,0.41174175,3207.5,3207.2,41.28957041]
[1737615832150,0.62393,3207.4,3207.2,41.28957041]
[1737615833259,0.62393,3207.3,3207.2,41.28957041]
[1737615835760,0.62393,3207.3,3207.2,0.48957041]
[1737615836067,3.08531717,3207.3,3207.2,0.00467041]
[1737615836272,10.42536374,3207.3,3207.2,0.00467041]
[1737615836467,11.31912469,3207.3,3207.2,0.00467041]
[1737615836657,11.83092469,3207.3,3207.2,0.00467041]
[1737615837466,0.62401,3206.9,3206.8,40.8]
[1737615837666,3.08539717,3206.9,3206.8,40.8]
[1737615837858,3.13441696,3206.9,3206.8,40.8]
[1737615838268,3.49713892,3206.9,3206.8,40.8]
[1737615838569,3.08539717,3206.9,3206.8,40.8]
[1737615839257,3.49713892,3206.9,3206.8,40.8]
[1737615839458,3.08539717,3206.9,3206.8,40.8]
[1737615840073,3.49713892,3206.9,3206.8,40.8]
[1737615840370,3.08539717,3206.9,3206.8,40.8]
[1737615840972,3.49713892,3206.9,3206.8,40.8]
[1737615841170,3.08539717,3206.9,3206.8,40.8]
[1737615841368,3.13442858,3206.9,3206.8,40.8]
[1737615841570,8.00720985,3206.9,3206.8,40.8]
[1737615841764,8.85167497,3206.9,3206.8,40.8]
[1737615842073,0.62426,3205.6,3205.1,3.83215]
[1737615842265,2.46138717,3205.5,3205.1,3.2078]
[1737615842570,2.46138717,3205.2,3204.7,3.2078]
[1737615842770,0.62445,3204.7,3204.2,8.68560756]
[1737615842970,2.46138717,3204.4,3204.2,4.85327756]
[1737615844173,0.004678,3204.8,3204.5,0.62447]
[1737615844475,0.004678,3204.8,3204.3,0.62451]
[1737615844674,0.004678,3204.8,3204.2,8.06107756]
[1737615845064,0.004678,3204.8,3204.3,0.6245]
[1737615845267,0.004678,3204.8,3204.4,0.62448]
[1737615845767,0.004678,3204.8,3204.5,0.62447]
[1737615845973,0.004678,3204.8,3204.5,0.62446]
[1737615846172,0.004678,3204.8,3204.2,3.2078]
[1737615846173,0.004678,3204.8,3204.7,0.62444]
[1737615846370,0.004678,3204.8,3204.6,3.2078]
[1737615846675,0.004678,3204.8,3204.5,0.62447]
[1737615846876,0.004678,3204.8,3204.7,40.8]
[1737615847275,0.004678,3204.8,3204.7,41.42444]
[1737615847571,0.62423,3205.8,3205.3,0.62432]
[1737615847768,0.62424,3205.8,3205.4,0.4834]
[1737615847965,0.62425,3205.7,3205.4,0.4834]
[1737615848671,0.62423,3205.8,3205.4,0.4834]
[1737615848982,4.63796416,3205.8,3205.4,0.4834]
[1737615849277,2.46138717,3205.6,3205.4,0.4834]
[1737615851176,5.66918717,3205.6,3205.4,1.1077]
[1737615851379,5.66918717,3205.6,3205.4,0.4834]
[1737615852280,5.66918717,3205.6,3205.5,40.8]
[1737615855488,6.29344717,3205.6,3205.5,40.8]
[1737615856189,5.66918717,3205.6,3205.5,40.8]
[1737615858980,3.2078,3205.6,3205.5,40.8]
[1737615859186,0.004678,3205.9,3205.8,0.62422]
[1737615859692,3.09026517,3205.9,3205.6,0.5088]
[1737615859881,3.09026517,3205.9,3205.6,1.13306]
[1737615860189,3.09026517,3205.9,3205.6,0.5088]
[1737615860388,0.62423,3205.8,3205.5,40.8]
[1737615860687,0.62432,3205.3,3205.2,0.004678]
[1737615860885,3.08570717,3205.3,3205.2,0.004678]
[1737615861084,2.46138717,3205.3,3205.2,0.004678]
[1737615861284,3.08570717,3205.3,3205.2,0.004678]
[1737615863695,0.62432,3205.3,3205.2,0.004678]
[1737615864789,0.62431,3205.4,3205.2,0.004678]
[1737615865086,0.5016,3205.5,3205.2,0.004678]
[1737615865288,0.5016,3205.5,3205.3,0.62432]
[1737615865493,5.66918717,3205.6,3205.4,0.62429]
[1737615865690,5.66918717,3205.6,3205.2,0.004678]
[1737615865897,3.2078,3205.6,3205.5,0.62428]
[1737615866890,3.09027517,3205.9,3205.2,0.004678]
[1737615867098,2.46606517,3205.9,3205.3,0.62432]
[1737615867299,2.46606517,3205.9,3205.7,0.62423]
[1737615867596,2.46606517,3205.9,3205.8,41.42422]
[1737615867797,2.46606517,3205.9,3205.8,40.8]
[1737615868698,0.004678,3205.9,3205.8,41.42422]
[1737615873496,0.004678,3205.9,3205.8,40.8]
[1737615873900,0.628878,3205.9,3205.8,40.8]
[1737615874201,0.004678,3205.9,3205.8,40.8]
[1737615874695,0.628878,3205.9,3205.8,40.8]
[1737615875098,0.004678,3205.9,3205.8,40.8]
[1737615875804,0.004678,3205.9,3205.8,41.42422]
[1737615877804,0.004678,3205.9,3205.8,47.41862]
[1737615878397,1.54607113,3206.7,3205.9,1.56048]
[1737615878602,0.5101,3206.7,3206.1,3.2078]
[1737615878802,4.31371,3206.9,3206.7,0.62403]
[1737615879203,0.62403,3206.8,3206.6,0.62405]
[1737615879403,0.62403,3206.8,3206.1,3.2078]
[1737615879404,3.6897,3206.9,3206.1,3.2078]
[1737615879600,0.62406,3206.7,3206.1,3.2078]
[1737615879794,0.62403,3206.8,3206.1,4.76821]
[1737615879998,0.62403,3206.8,3206.7,40.8]
[1737615880698,0.62403,3206.8,3206.7,41.42405]
[1737615880996,0.62403,3206.8,3206.7,40.8]
[1737615881208,3.08541717,3206.8,3206.7,40.8]
[1737615881398,0.62408,3206.6,3206.4,0.6241]
[1737615881798,0.62409,3206.5,3206.4,0.6241]
[1737615882593,0.62409,3206.5,3206.2,40.8]
[1737615882799,0.6241,3206.5,3206.3,0.62412]
[1737615884101,2.46138717,3206.5,3206.2,40.8]
[1737615884307,1.15301,3206.4,3206.2,41.42413]
[1737615884509,1.15301,3206.4,3206.2,40.8]
[1737615884807,0.5176,3206.3,3206.2,41.42414]
[1737615885303,0.4876,3206.7,3206.4,0.6241]
[1737615885304,3.2078,3206.5,3206.4,0.6241]
[1737615885606,1.5268,3206.7,3206.6,0.62406]
[1737615886006,3.2078,3206.9,3206.3,1.56031]
[1737615886302,3.2078,3206.9,3206.8,0.62403]
[1737615887314,3.2078,3206.9,3206.8,41.42403]
[1737615887703,0.004678,3207.1,3206.8,40.8]
[1737615887905,0.004678,3207.1,3207.0,0.62399]
[1737615889716,0.004678,3207.1,3207.0,1.13959]
[1737615890108,0.004678,3207.1,3207.0,41.93959]
[1737615890709,0.004678,3207.1,3207.0,46.93959]
[1737615891500,0.004678,3207.1,3207.0,41.93959]
[1737615894312,0.004678,3207.1,3207.0,41.42399]
[1737615896807,0.004678,3207.1,3207.0,41.94809]
[1737615899916,0.004678,3207.1,3207.0,41.42399]
[1737615903122,0.004678,3207.1,3207.0,46.42399]
[1737615904013,0.004678,3207.1,3207.0,46.8674084]
[1737615906613,0.004678,3207.1,3207.0,41.42399]
[1737615908225,0.004678,3207.1,3207.0,46.42399]
[1737615908425,8e-06,3207.1,3207.0,46.42399]
[1737615908928,8e-06,3207.1,3207.0,46.86775027]
[1737615910015,8e-06,3207.1,3207.0,47.35695027]
[1737615911628,8e-06,3207.1,3207.0,41.24376027]
[1737615911930,8e-06,3207.1,3207.0,41.42399]
[1737615912230,0.623978,3207.1,3207.0,41.42399]
[1737615912429,0.623978,3207.1,3207.0,40.8]
[1737615912832,0.623978,3207.1,3207.0,41.42399]
[1737615913329,0.623978,3207.1,3207.0,40.8]
[1737615915933,0.67299294,3207.1,3207.0,40.8]
[1737615916131,4.7861085,3207.1,3207.0,40.8]
[1737615916329,0.62411,3206.4,3206.1,3.83195]
[1737615916631,3.97628717,3206.3,3205.9,0.62419]
[1737615916826,0.62416,3206.2,3205.9,0.62419]
[1737615917027,0.62417,3206.1,3205.8,0.62421]
[1737615917226,0.62417,3206.1,3206.0,40.8]
[1737615917431,3.97628717,3206.3,3206.0,40.8]
[1737615917633,0.62416,3206.1,3206.0,40.8]
[1737615918133,3.97628717,3206.3,3206.0,40.8]
[1737615918949,4.60042717,3206.3,3206.0,41.42417]
[1737615919147,0.62415,3206.2,3206.0,41.42417]
[1737615919643,0.62415,3206.2,3206.0,40.8]
[1737615919839,3.97628717,3206.3,3206.0,40.8]
[1737615920040,0.62416,3206.1,3206.0,40.8]
[1737615920241,3.97628717,3206.3,3206.0,40.8]
[1737615920443,0.62416,3206.2,3206.0,40.8]
[1737615921646,0.62416,3206.1,3206.0,40.8]
[1737615922047,0.62415,3206.2,3206.0,40.8]
[1737615923857,0.62416,3206.1,3206.0,40.8]
[1737615924151,4.68973573,3206.1,3206.0,40.8]
[1737615924539,0.62416,3206.1,3206.0,40.8]
[1737615927158,3.97628717,3206.3,3206.0,40.8]
[1737615927347,3.97628717,3206.3,3206.1,0.62416]
[1737615927851,1.5149,3206.3,3206.1,0.62415]
[1737615928055,2.13903,3206.3,3206.1,0.62415]
[1737615928750,1.5149,3206.3,3206.2,0.62415]
[1737615929253,0.4927,3206.3,3206.2,0.62415]
[1737615929453,3.2078,3206.8,3206.0,3.2078]
[1737615929658,3.2078,3206.8,3206.7,0.62405]
[1737615930053,3.2078,3206.8,3206.7,41.42405]
[1737615930354,0.4915,3207.0,3206.7,40.8]
[1737615930556,0.4915,3207.0,3206.9,0.62401]
[1737615931259,0.4915,3207.0,3206.7,40.8]
[1737615931460,2.46138717,3206.9,3206.7,40.8]
[1737615931651,3.2078,3206.8,3206.0,3.2078]
[1737615931960,0.62405,3206.7,3206.4,0.62411]
[1737615932457,6.18698717,3206.8,3206.0,3.2078]
[1737615932656,0.6241,3206.5,3206.0,3.2078]
[1737615932856,0.6241,3206.5,3206.2,0.62414]
[1737615933057,0.4873,3206.4,3206.0,3.2078]
[1737615933255,1.11142,3206.4,3206.1,0.62415]
[1737615933451,0.4873,3206.4,3206.1,0.62415]
[1737615933652,0.4873,3206.4,3206.0,3.2078]
[1737615933853,0.4823,3206.3,3206.2,0.62414]
[1737615934866,0.4823,3206.3,3206.1,0.62415]
[1737615935052,0.4823,3206.3,3206.2,0.62414]
[1737615935253,0.4823,3206.3,3206.2,40.8]
[1737615935454,1.10642,3206.3,3206.2,40.8]
[1737615936253,1.10642,3206.3,3205.7,1.0008]
[1737615936254,3.6901,3206.3,3205.6,3.2078]
[1737615936456,0.6242,3206.0,3205.7,0.62423]
[1737615936848,0.5126,3205.9,3205.8,41.42422]
[1737615937962,3.6901,3206.3,3205.8,40.8]
[1737615938153,0.5126,3206.2,3205.8,40.8]
[1737615938763,0.5126,3206.2,3206.1,0.62416]
[1737615939154,0.5126,3206.2,3205.9,0.62419]
[1737615939565,0.5126,3206.2,3205.8,40.8]
[1737615940050,0.62419,3206.0,3205.8,40.8]
[1737615940258,0.6242,3205.9,3205.8,40.8]
[1737615940555,0.62418,3206.0,3205.8,40.8]
[1737615940964,0.62419,3206.0,3205.8,40.8]
[1737615941258,3.83199,3205.9,3205.3,0.986]
[1737615941460,3.08560717,3205.8,3205.4,0.62427]
[1737615941659,2.46138717,3205.8,3205.6,0.62424]
[1737615941968,2.46138717,3205.8,3205.7,40.8]
[1737615942362,3.83201,3205.9,3205.7,40.8]
[1737615942769,3.2078,3205.9,3205.7,40.8]
[1737615943159,3.832,3205.9,3205.7,40.8]
[1737615943667,3.2078,3205.9,3205.7,40.8]
[1737615943859,3.2078,3205.9,3205.7,41.42422]
[1737615945664,3.08559717,3205.8,3205.7,40.8]
[1737615948868,2.46138717,3205.8,3205.7,40.8]
[1737615949066,0.62421,3205.8,3205.7,40.8]
[1737615951872,3.83199,3205.9,3205.7,40.8]
[1737615952272,3.2078,3205.9,3205.7,40.8]
[1737615952470,0.62421,3205.8,3205.7,40.8]
[1737615952869,3.832,3205.9,3205.7,40.8]
[1737615953063,3.2078,3205.9,3205.7,40.8]
[1737615953267,0.62421,3205.8,3205.7,40.8]
[1737615955366,3.2078,3205.9,3205.7,40.8]
[1737615955567,3.2078,3205.9,3205.8,0.62421]
[1737615955767,3.2078,3205.9,3205.7,41.42421]
[1737615955974,3.83199,3205.9,3205.7,41.42421]
[1737615956476,0.62421,3205.8,3205.7,40.8]
[1737615956774,3.2078,3205.9,3205.7,40.8]
[1737615956775,3.832,3205.9,3205.7,40.8]
[1737615957075,0.62421,3205.8,3205.7,40.8]
[1737615957671,0.62421,3205.8,3205.3,1.60059]
[1737615957672,0.62428,3205.5,3205.3,1.107]
[1737615957871,1.0013,3205.7,3205.3,0.4827]
[1737615958070,0.62428,3205.4,3205.3,0.4827]
[1737615958570,0.62428,3205.4,3205.3,41.2827]
[1737615959172,0.62428,3205.4,3205.3,40.8]
[1737615960071,1.14178,3205.4,3205.3,40.8]
[1737615965779,5.24211831,3205.4,3205.3,40.8]
[1737615968083,0.6243,3205.3,3205.2,0.004678]
[1737615971981,0.6243,3205.3,3205.2,40.804678]
[1737615973084,4.64057537,3205.3,3205.2,40.804678]
[1737615973285,5.05284085,3205.3,3205.2,0.004678]
[1737615975083,5.10181162,3205.3,3205.2,0.004678]
[1737615975285,5.05284085,3205.3,3205.2,0.004678]
[1737615977993,5.10181519,3205.3,3205.2,0.004678]
[1737615978184,5.05284085,3205.3,3205.2,0.004678]
[1737615978391,4.64057537,3205.3,3205.2,0.004678]
[1737615984899,5.66918717,3205.5,3205.3,0.6243]
[1737615985193,6.29346717,3205.5,3205.4,0.5036]
[1737615987193,0.6243,3205.3,3205.2,0.004678]
[1737615989287,0.6243,3205.3,3205.2,0.520178]
[1737615989887,0.6243,3205.4,3205.2,1.144488]
[1737615990086,0.62428,3205.4,3205.2,0.520178]
[1737615990695,0.62428,3205.4,3205.2,1.144488]
[1737615990996,5.66918717,3205.5,3205.2,0.520178]
[1737615991195,0.6243,3205.3,3205.2,0.520178]
[1737615993086,0.6243,3205.3,3205.2,0.004678]
[1737615999798,0.6243,3205.3,3205.2,8e-06]
[1737615999799,9.70641498,3205.3,3205.2,8e-06]
[1737616000195,4.70641498,3205.3,3205.2,8e-06]
[1737616002501,5.55130539,3205.3,3205.2,8e-06]
[1737616002712,10.55130539,3205.3,3205.2,8e-06]
[1737616002912,10.60025673,3205.3,3205.2,8e-06]
[1737616003612,5.60025673,3205.3,3205.2,8e-06]
[1737616003810,10.60025673,3205.3,3205.2,8e-06]
[1737616004515,14.0556769,3205.3,3205.2,8e-06]
[1737616006314,14.05567618,3205.3,3205.2,8e-06]
[1737616006711,14.05428179,3205.3,3205.2,8e-06]
[1737616007908,13.38242386,3205.3,3204.1,3.2078]
[1737616008114,0.62452,3204.2,3204.1,3.2078]
[1737616008411,0.62452,3204.2,3204.1,44.0078]
[1737616016005,0.62452,3204.2,3204.1,40.8]
[1737616016922,3.08590717,3204.2,3204.1,40.8]
[1737616020520,5.66918717,3204.2,3203.9,1.0349]
[1737616020721,0.62456,3204.0,3203.9,0.5265]
[1737616021315,10.71922866,3204.0,3202.7,0.24563895]
[1737616021517,2.46138717,3202.8,3202.3,0.9915]
[1737616021714,0.62487,3202.4,3202.3,0.9915]
[1737616022319,0.62487,3202.4,3202.3,41.7915]
[1737616022824,0.004678,3202.7,3202.3,41.7915]
[1737616023021,0.62487,3202.4,3202.3,41.7915]
[1737616023325,0.62493,3202.1,3202.0,0.004678]
[1737616023712,2.46138717,3202.5,3202.0,40.804678]
[1737616023921,0.62492,3202.2,3202.0,40.804678]
[1737616024520,2.46138717,3202.5,3202.0,40.804678]
[1737616024719,0.62493,3202.1,3202.0,40.804678]
[1737616025516,1.56241,3202.0,3200.9,0.62516]
[1737616025724,2.46138717,3201.1,3200.9,1.003]
[1737616026025,2.46138717,3201.1,3201.0,40.8]
[1737616026819,2.46138717,3201.1,3201.0,41.42514]
[1737616027025,5.66918717,3201.7,3201.0,40.8]
[1737616027227,2.46138717,3202.0,3201.2,3.2078]
[1737616027528,2.46138717,3202.0,3201.8,0.62497]
[1737616027730,2.46138717,3202.0,3201.9,0.487]
[1737616028329,2.46138717,3202.0,3201.9,1.0002]
[1737616028532,2.46138717,3202.0,3201.9,41.8002]
[1737616030823,2.46138717,3202.0,3201.9,42.42517]
[1737616031024,2.46138717,3202.0,3201.9,41.8002]
[1737616031325,2.46138717,3202.0,3201.9,42.42517]
[1737616031521,2.46138717,3202.0,3201.9,41.8002]
[1737616031929,2.46138717,3202.0,3201.9,42.42517]
[1737616032135,2.46138717,3202.0,3201.9,41.8002]
[1737616034430,3.08633717,3202.0,3201.9,41.8002]
[1737616035627,3.08633717,3202.0,3201.9,40.8]
[1737616035935,3.58723717,3202.0,3201.9,40.8]
[1737616036628,7.7113341,3202.0,3201.9,40.8]
[1737616037629,7.0863841,3202.0,3201.2,3.2078]
[1737616037838,3.08644717,3201.5,3201.2,3.2078]
[1737616038130,1.14556,3201.4,3201.3,40.8]
[1737616039935,0.5205,3201.4,3201.3,40.8]
[1737616040128,1.14556,3201.4,3201.3,40.8]
[1737616040827,5.23228643,3201.4,3201.3,40.8]
[1737616041934,0.62513,3201.1,3200.8,0.62517]
[1737616042133,0.62513,3201.1,3200.6,3.2078]
[1737616042134,2.46138717,3201.1,3200.6,3.2078]
[1737616042330,4.58646149,3201.0,3200.6,3.2078]
[1737616042544,1.0182,3201.0,3200.6,3.2078]
[1737616042931,3.2078,3201.3,3200.9,40.8]
[1737616043129,2.98188717,3201.4,3201.0,3.2078]
[1737616043335,2.98188717,3201.4,3201.2,0.62509]
[1737616043533,0.5205,3201.4,3201.2,0.62509]
[1737616043932,0.5232,3201.6,3201.1,0.4859]
[1737616044237,3.2078,3201.7,3201.6,0.62503]
[1737616044831,3.2078,3201.7,3201.6,41.42503]
[1737616045540,6.29419717,3201.7,3201.6,40.8]
[1737616046930,9.76771314,3201.7,3200.6,3.2078]
[1737616047136,0.62518,3200.8,3200.7,0.5288]
[1737616047333,0.62517,3200.9,3200.7,1.154]
[1737616047536,1.12267,3200.9,3200.8,40.8]
[1737616050637,0.4975,3200.9,3200.8,40.8]
[1737616050825,1.12266,3200.9,3200.8,40.8]
[1737616053142,0.4975,3200.9,3200.8,40.8]
[1737616053437,0.00468538,3201.1,3200.8,40.8]
[1737616053644,0.00468538,3201.1,3201.0,0.62514]
[1737616055048,0.00468538,3201.1,3200.8,40.8]
[1737616055340,2.46138717,3201.0,3200.9,0.62515]
[1737616056142,0.62516,3200.9,3200.8,40.8]
[1737616058539,3.08654717,3201.0,3200.8,40.8]
[1737616058743,0.62516,3200.9,3200.8,40.8]
[1737616059344,3.08653717,3201.0,3200.8,41.42518]
[1737616059544,0.00468538,3201.1,3200.8,40.8]
[1737616060138,0.62980538,3201.1,3200.9,0.62516]
[1737616060343,0.00468538,3201.1,3200.9,1.11306]
[1737616061241,0.00468538,3201.1,3201.0,0.62514]
[1737616067043,3.2078,3201.7,3201.0,0.62514]
[1737616067249,3.2078,3201.7,3201.6,0.62503]
[1737616067946,3.2078,3201.7,3201.1,1.56282]
[1737616068340,3.21248538,3201.7,3201.1,1.56750538]
[1737616068546,3.83749538,3201.7,3201.5,0.62504]
[1737616068751,3.21248538,3201.7,3201.2,3.2078]
[1737616068955,3.83750538,3201.7,3201.5,0.62503]
[1737616069151,3.83750538,3201.7,3201.6,40.8]
[1737616069346,3.83750538,3201.7,3201.6,41.42503]
[1737616069852,3.21248538,3201.7,3201.6,41.42503]
[1737616071351,3.83749538,3201.7,3201.6,41.42503]
[1737616071854,3.21248538,3201.7,3201.6,41.42503]
[1737616073154,0.00468538,3201.7,3201.6,41.42503]
[1737616074052,0.00468538,3201.7,3201.6,44.63283]
[1737616076743,0.62969538,3201.7,3201.6,44.0078]
[1737616076949,0.62969538,3201.7,3201.6,3.2078]
[1737616080458,3.21248538,3201.7,3201.3,0.503]
[1737616080762,0.62506,3201.4,3201.3,1.12808]
[1737616080960,0.62508,3201.3,3201.2,40.8]
[1737616081157,3.57186717,3201.3,3201.2,40.8]
[1737616085462,3.57020221,3201.3,3201.2,40.8]
[1737616086566,0.6251,3201.2,3201.1,0.00468538]
[1737616086755,1.1069,3201.2,3201.1,0.00468538]
[1737616087159,1.1069,3201.2,3201.1,40.80468538]
[1737616087965,4.3147,3201.2,3201.1,40.80468538]
[1737616088666,0.00468538,3201.7,3201.6,0.62503]
[1737616089360,0.62506,3201.5,3201.3,3.83288]
[1737616089565,3.08643717,3201.5,3201.4,40.8]
[1737616090766,0.51158538,3201.7,3201.6,0.62503]
[1737616091063,0.00468538,3201.7,3201.6,0.62503]
[1737616092868,0.00468538,3201.7,3201.4,40.8]
[1737616093069,2.46138717,3201.5,3201.4,40.8]
[1737616093369,0.51598538,3201.7,3201.6,0.62503]
[1737616093671,0.00468538,3201.7,3201.6,0.62503]
[1737616096270,0.00468538,3201.7,3201.6,41.42503]
[1737616097477,0.00468538,3201.7,3201.6,48.88641717]
[1737616097664,3.48598717,3202.7,3202.5,0.62484]
[1737616097665,2.95798717,3202.7,3202.5,0.62484]